Cogmind - Beta 13 @@@ ROGUE MODE // 2024.06.26 @ 23:28:17 Player: Sionnis Result: Self-destructed Performance ------------- Evolutions (2) 1000 Regions Visited (7) 1400 Robots Destroyed (129) 645 Value Destroyed (3157) 3157 Prototype IDs (37) 740 Alien Tech Used (0) 0 Bonus (874) 874 TOTAL SCORE: 7816 Bonus ------- High Alert Combat Kills 222 Follower Combat Kills 352 Aligned with FarCom 300 Cogmind --------- Core Integrity 222/550 Matter 280/300 Energy 265/265 System Corruption 1% Temperature Cool (0) Movement Core (350) Ox6 Location -8/Materials Parts ------- > --- POWER (1) -------- Improved Ion Engine > --- PROPULSION (4) --- (None) > --- UTILITY (4) ------ Medium Storage Unit Weight Redist. System Advanced Visual Processing Unit Hacking Suite > --- WEAPON (2) ------- Katana > --- INVENTORY (10) --- Faulty Improved Flight Unit Faulty Improved VTOL Module Improved VTOL Module Improved Sensor Array Improved Signal Interpreter ECM Suite Improved Utility Shielding Hacking Suite Peak State ------------ > --- POWER ------------ (None) > --- PROPULSION ------- Improved Flight Unit Improved Flight Unit Xenon Bombardment Thruster > --- UTILITY ---------- Medium Storage Unit Improved Sensor Array Improved Signal Interpreter Hacking Suite > --- WEAPON ----------- Field Lobotomy Kit Makeshift Spear > --- INVENTORY -------- Improved Flight Unit Xenon Bombardment Thruster Xenon Bombardment Thruster Weight Redist. System ECM Suite Propulsion Shielding Mini Grenade Launcher Mini Grenade Launcher [Rating: 35] Favorites ----------- Power Ion Engine Engine Ion Engine Power Core Light Nuclear Core Propulsion Armored Treads Treads Armored Treads Leg Aluminum Leg Wheel Compact Wheel Flight Unit Improved Flight Unit Utility Huge Storage Unit Device Structural Scanner Storage Huge Storage Unit Processor Improved Targeting Computer Hackware Hacking Suite Protection Hardened Light Armor Plating Weapon Assault Rifle Energy Gun Improved Medium Laser Energy Cannon Advanced Beam Cannon Ballistic Gun Assault Rifle Launcher Mini Grenade Launcher Special Weapon Field Lobotomy Kit Slashing Weapon Katana Piercing Weapon Makeshift Spear Build | -11 -10 -10 -9 -9 -9 -8 -8 ------- Run | Yrd Mat Min Mat Min Exi Min Mat Slots Evolved 4 | . . . 2 . . . 2 Power . | . . . . . . . . Propulsion 2 | . . . 1 . . . 1 Utility 2 | . . . 1 . . . 1 Weapon . | . . . . . . . . Parts Attached 106 | 8 13 5 32 5 1 11 31 Power 13 | 2 1 . 3 1 . 1 5 Engine 10 | 2 1 . 3 1 . . 3 Core 3 | . . . . . . 1 2 Reactor . | . . . . . . . . Propulsion 34 | 2 4 2 13 1 . 3 9 Treads 13 | 2 . . 10 1 . . . Leg 2 | . . . 1 . . . 1 Wheel 8 | . 4 2 2 . . . . Hover . | . . . . . . . . Flight 11 | . . . . . . 3 8 Utility 25 | 1 4 1 9 1 . 3 6 Device 6 | . 2 . . . . 1 3 Storage 4 | 1 1 . 1 . . . 1 Processor 4 | . . . 2 . . . 2 Hackware 1 | . . . . . . 1 . Protection 10 | . 1 1 6 1 . 1 . Artifact . | . . . . . . . . Weapon 34 | 3 4 2 7 2 1 4 11 Energy Gun 7 | 1 . 1 5 . . . . Energy Cannon 2 | . . . 1 1 . . . Ballistic Gun 10 | 2 4 1 1 1 . 1 . Ballistic Cannon . | . . . . . . . . Launcher 10 | . . . . . 1 2 7 Special Weapon 3 | . . . . . . . 3 Impact Weapon . | . . . . . . . . Slashing Weapon 1 | . . . . . . . 1 Piercing Weapon 1 | . . . . . . 1 . Special Melee Weapon . | . . . . . . . . Unidentified Prototypes 3 | . . . 3 . . . . Parts Lost 38 | . 5 2 5 4 . 6 16 Power 8 | . 1 . 1 2 . . 4 Propulsion 18 | . 2 2 2 . . 3 9 Utility 4 | . 1 . 1 1 . 1 . Weapon 8 | . 1 . 1 1 . 2 3 Highest Loss Streak 6 | . 3 1 2 2 . 6 5 To Critical Strikes . | . . . . . . . . Average Slot Usage (%) 95 | . 98 99 99 98 88 87 84 Engine 8 | . 13 14 11 9 . . 1 Treads 22 | . 8 . 29 33 33 29 . Wheel 6 | . 18 27 3 . . . . Flight 2 | . . . . . . 3 25 Device 1 | . 5 . . . . . 8 Storage 11 | . 17 14 11 11 11 10 7 Processor 7 | . . . 10 11 11 10 8 Protection 9 | . 3 14 11 10 11 10 1 Energy Gun 3 | . 2 8 8 . . . . Energy Cannon 4 | . . . 2 11 11 9 . Ballistic Gun 12 | . 25 19 11 11 10 7 . Naked Turns . | . . . . . . . . Heaviest Build 103 | 12 92 94 103 102 95 95 19 Greatest Support 60 | 40 40 32 60 60 60 60 22 Greatest Overweight (x) 9 | . 5 9 9 1 1 1 4 Average Overweight (x) 1 | . 2 3 1 1 1 . . Largest Inventory Capacity 25 | 8 25 25 25 25 25 25 10 Average Capacity 22 | 6 21 25 25 25 25 23 9 Most Carried 25 | 2 16 21 25 25 24 24 10 Average Carried 19 | 1 10 19 23 24 23 22 8 Final Capacity 25 | 8 25 25 25 25 25 5 10 Final Carried 25 | 2 16 21 25 23 24 5 8 Class Distribution -------------------- 87% | Mutant 6% | Scavenger-Mutant 5% | Sprinter Dominant Class ---------------- Mutant | -10/Materials Mutant | -10/Mines Mutant | -9/Materials Mutant | -9/Mines Mutant | -9/Exiles Mutant | -8/Mines Sprinter | -8/Materials Resources | -11 -10 -10 -9 -9 -9 -8 -8 ----------- Run | Yrd Mat Min Mat Min Exi Min Mat Matter Collected 2156 | 268 278 150 656 111 9 188 496 Remotely . | . . . . . . . . Salvage Created 4120 | . 571 314 1790 407 19 284 735 Parts 256 | . 36 19 112 21 . 13 55 Haulers Intercepted 11 | . 2 . 6 . . . 3 Recyclers Shooed 7 | . 5 . 1 . . . 1 Parts Field Recycled . | . . . . . . . . Retrieved Matter . | . . . . . . . . Parts Self-Destructed . | . . . . . . . . Prevented . | . . . . . . . . Kills | -11 -10 -10 -9 -9 -9 -8 -8 ------- Run | Yrd Mat Min Mat Min Exi Min Mat Combat Hostiles Destroyed 97 | . 11 6 31 13 7 10 19 Melee 4 | . . . . . . . 4 Guns 53 | . 11 6 28 8 . . . Cannons 10 | . . . 3 5 . 2 . AOE 30 | . . . . . 7 8 15 Classes Destroyed 13 | . 7 1 3 1 1 . . Worker 6 | . 1 . 1 . . 1 3 Builder 4 | . 1 1 1 . . . 1 Hauler 11 | . 2 . 6 . . . 3 Recycler 8 | . 3 . 2 . . 1 2 Operator 1 | . . . 1 . . . . Watcher 9 | . 3 . 2 . . . 4 Swarmer 30 | . 8 . 8 4 . 4 6 Grunt 40 | . 3 4 12 6 . 6 9 Brawler 1 | . . . 1 . . . . Duelist 6 | . . . 2 2 . . 2 Sentry 12 | . . 2 8 . . . 2 Demolisher 1 | . . . . 1 . . . Assembled 7 | . . . . . 7 . . Best Kill Streak 10 | . 5 2 6 4 7 6 10 Combat Bots Only 7 | . 3 2 6 4 7 6 6 Max Kills in Single Turn 5 | . 3 1 2 2 3 2 5 Gunslinging 1 | . . . 1 . . . . Exploded 3 | . . . . . 3 2 3 Melee 1 | . . . . . . . 1 Uniques/NPCs Destroyed . | . . . . . . . . Combat | -11 -10 -10 -9 -9 -9 -8 -8 -------- Run | Yrd Mat Min Mat Min Exi Min Mat Hostile Shots Fired 532 | . 45 32 200 41 6 64 144 Missed 174 | . 17 10 59 9 4 9 66 Damage Taken 5413 | . 628 303 1761 490 24 979 1228 Core 879 | . 93 68 157 10 . 223 328 Absorbed by Shields . | . . . . . . . . Redirected to Shielding 4 | . . . . . . . 4 Regen/Repaired (Parts) 64 | . 33 . 5 . . . 26 Core Remaining (%) 45 | 100 . 35 . . . 2 . Volleys Fired 283 | . 60 22 121 26 12 22 20 Largest 2 | . 2 2 2 2 1 2 1 Hottest 91 | . 60 79 91 88 68 88 30 Shots Fired 510 | . 116 44 238 52 12 28 20 Gun 420 | . 116 44 228 26 . 6 . Cannon 54 | . . . 10 26 6 12 . Launcher 31 | . . . . . 6 10 15 Special 5 | . . . . . . . 5 Kinetic 278 | . 91 34 121 26 . 6 . Thermal 196 | . 25 10 117 26 6 12 . Explosive 31 | . . . . . 6 10 15 Electromagnetic . | . . . . . . . . Robot Hit Streak 27 | . 14 25 27 12 . 9 13 Robot Miss Streak 8 | . 3 2 8 1 . 2 . Penetration Max . | . . . . . . . . Secondary Targets 12 | . 4 . 8 . . . . Max Gunslinging Chain 1 | . 1 . 1 . . . . Shots Hit Robots 377 | . 75 34 165 41 . 21 41 Core Hits 206 | . 31 13 59 19 13 19 52 Critical Kills 1 | . 1 . . . . . . Critical Parts Destroyed 1 | . . 1 . . . . . Critical Strikes 13 | . 1 3 8 . . . 1 Burn 10 | . . 2 8 . . . . Destroy 2 | . 1 1 . . . . . Impale 1 | . . . . . . . 1 Melee Attacks 65 | . . . . . . 2 63 Impact . | . . . . . . . . Slashing 16 | . . . . . . . 16 Piercing 49 | . . . . . . 2 47 Sneak Attacks 11 | . . . . . . 2 9 Combat Hostiles . | . . . . . . . . Follow-up Attacks . | . . . . . . . . Damage Inflicted 9624 | . 946 487 2832 774 334 1086 3165 Guns 4200 | . 740 487 2605 314 . 54 . Cannons 894 | . . . 203 460 . 231 . Explosions 2951 | . 193 . . . 334 628 1796 Melee 1542 | . . . . . . 173 1369 Ramming 37 | . 13 . 24 . . . . Kinetic 2570 | . 540 401 1261 314 . 54 . Thermal 2717 | . 393 86 1547 460 . 231 . Explosive 2758 | . . . . . 334 628 1796 Electromagnetic . | . . . . . . . . Impact . | . . . . . . . . Slashing 340 | . . . . . . . 340 Piercing 1202 | . . . . . . 173 1029 Highest Corruption 1 | . 1 1 . . . . 1 Average Corruption 1 | . 1 1 . . . . 1 Corruption Purged . | . . . . . . . . Corruption Blocked . | . . . . . . . . Effects 20 | . 8 8 . . . . 4 Message Errors 7 | . 3 2 . . . . 2 Matter Fused 5 | . 2 2 . . . . 1 Heat Flow Errors 1 | . . 1 . . . . . Energy Discharges 3 | . 1 2 . . . . . Data Loss (major) 2 | . 1 1 . . . . . Alerts 1 | . . . . . . . 1 Weapon Failures 1 | . 1 . . . . . . Overload Shots . | . . . . . . . . Overflow Damage 336 | . 103 . . . . 100 133 Projectiles 4 | . . . . . . 4 . Explosions 155 | . 103 . . . . 3 49 Melee 177 | . . . . . . 93 84 Knockbacks . | . . . . . . . . Impact . | . . . . . . . . Kinetic . | . . . . . . . . Secondary . | . . . . . . . . Self-Inflicted Damage 395 | . 225 . . . . 127 43 Shots 7 | . 2 . . . . 4 1 Rammed 6 | . 2 . 4 . . . . Targets Rammed 7 | . 3 . 4 . . . . Kicked . | . . . . . . . . Crushed 1 | . 1 . . . . . . Highest Temperature 410 | . 20 126 333 155 66 410 16 Average Temperature 67 | . 8 42 66 46 27 177 6 Received Heat Transfer 1980 | . 66 156 630 102 . 522 504 Effects 4 | . . . 2 . . 2 . Interference 2 | . . . 2 . . . . Short Circuit 1 | . . . . . . 1 . Damage (minor) 1 | . . . . . . 1 . Siege Activations . | . . . . . . . . Robots Corrupted . | . . . . . . . . Combat Hostiles . | . . . . . . . . Parts Fried . | . . . . . . . . Impact Corruptions . | . . . . . . . . Robots Melted . | . . . . . . . . Combat Hostiles . | . . . . . . . . Parts Melted 8 | . . . 8 . . . . Heat Transferred 6039 | . 600 370 3885 777 . 407 . Parts Sabotaged . | . . . . . . . . Parts Stolen . | . . . . . . . . Parts Stripped . | . . . . . . . . Power Chain Reactions . | . . . . . . . . Alert | -11 -10 -10 -9 -9 -9 -8 -8 ------- Run | Yrd Mat Min Mat Min Exi Min Mat Peak Influence 1177 | . 326 99 412 185 . 137 1177 Initial 124 | . . 3 23 124 . . 53 Average 175 | . 96 46 193 93 . 99 603 Maximum Alert Level 4 | . 1 . 2 . . . 4 Low Security (%) 72 | 100 87 100 49 100 . 100 20 Level 1 19 | . 12 . 48 . . . 9 Level 2 3 | . . . 1 . . . 27 Level 3 3 | . . . . . . . 34 Level 4 . | . . . . . . . 8 Level 5 . | . . . . . . . . High Security . | . . . . . . . . Max Security . | . . . . . . . . Squads Dispatched 13 | . 1 . 3 1 . 2 6 Investigation 6 | . 1 . 2 1 . 1 1 Extermination . | . . . . . . . . Reinforcement 3 | . . . 1 . . 1 1 Assault 4 | . . . . . . . 4 Garrison . | . . . . . . . . Intercept . | . . . . . . . . Searches Triggered 1 | . . . . . . . 1 Construction Impeded 2 | . . . . . . 1 1 Haulers Reinforced . | . . . . . . . . Active Scanning Responses . | . . . . . . . . Cargo Convoy Interrupts . | . . . . . . . . Stealth | -11 -10 -10 -9 -9 -9 -8 -8 --------- Run | Yrd Mat Min Mat Min Exi Min Mat Distress Signals 12 | . 2 . 2 1 . . 7 Communications Jammed . | . . . . . . . . Distress Signals . | . . . . . . . . Times Spotted 187 | . 20 7 42 14 5 9 90 Peak Tracking Total 15 | . 5 2 5 4 9 6 15 Tactical Retreats 20 | . 2 1 1 1 . . 15 Traps | -11 -10 -10 -9 -9 -9 -8 -8 ------- Run | Yrd Mat Min Mat Min Exi Min Mat Traps Triggered 4 | . 2 . 1 . . . 1 Indirectly . | . . . . . . . . Trap Hack Attempts . | . . . . . . . . Triggered . | . . . . . . . . Disarmed 4 | . . . 4 . . . . Reprogrammed . | . . . . . . . . Reused . | . . . . . . . . Traps Extracted . | . . . . . . . . Installed . | . . . . . . . . Triggered . | . . . . . . . . Machines | -11 -10 -10 -9 -9 -9 -8 -8 ---------- Run | Yrd Mat Min Mat Min Exi Min Mat Machines Disabled 14 | . 3 . 4 . 6 . 1 Max in Single Turn 3 | . 3 . 1 . 1 . 1 Garrison Access 1 | . . . . . . . 1 Machines Repaired . | . . . . . . . . Machines Dismantled . | . . . . . . . . Machines Sabotaged . | . . . . . . . . Overloaded Fab Kills . | . . . . . . . . Hacking | -11 -10 -10 -9 -9 -9 -8 -8 --------- Run | Yrd Mat Min Mat Min Exi Min Mat Machines Accessed 43 | . 10 . 14 2 2 1 14 Terminals 30 | . 7 . 10 2 . 1 10 Fabricators . | . . . . . . . . Repair Stations 3 | . 1 . 1 . . . 1 Recycling Units 6 | . 2 . 2 . . . 2 Scanalyzers 1 | . . . 1 . . . . Garrison Access 1 | . . . . . . . 1 Total Hacks 129 | . 32 . 39 4 2 2 50 Successful 68 | . 17 . 24 . 2 . 25 Failed 58 | . 14 . 14 4 . 2 24 Catastrophic 7 | . . . 2 2 . 1 2 Database Lockouts 3 | . 1 . 1 . . . 1 Manual 52 | . 13 . 12 4 1 2 20 Terminals 102 | . 26 . 29 4 . 2 41 Fabricators . | . . . . . . . . Repair Stations 7 | . 3 . 2 . . . 2 Recycling Units 13 | . 3 . 5 . . . 5 Scanalyzers 3 | . . . 3 . . . . Garrison Access 2 | . . . . . . . 2 Terminal Hacks 46 | . 11 . 15 . 2 . 18 Record 1 | . . . . . 1 . . Part Schematic 4 | . . . 1 . . . 3 Robot Analysis 5 | . 3 . 1 . . . 1 Prototype ID Bank 7 | . 1 . 3 . . . 3 Terminal Index 1 | . . . 1 . . . . Alert Level 5 | . 1 . 2 . . . 2 Unreport Threat 2 | . . . 1 . . . 1 Locate Traps 6 | . 3 . . . . . 3 Disarm Traps 1 | . . . 1 . . . . Dispatch Records 1 | . . . . . . . 1 Transport Status 1 | . 1 . . . . . . Hauler Manifests 5 | . 1 . 2 . . . 2 Registered Components 2 | . . . 1 . . . 1 Registered Prototypes 1 | . 1 . . . . . . Zone Layout 3 | . . . 2 . . . 1 Derelict Proto ID Bank 1 | . . . . . 1 . . Fabricator Hacks . | . . . . . . . . Repair Station Hacks 6 | . 2 . 2 . . . 2 Scan Component 3 | . 1 . 1 . . . 1 Repair 3 | . 1 . 1 . . . 1 Recycling Unit Hacks 5 | . 2 . 2 . . . 1 Retrieve Components 5 | . 2 . 2 . . . 1 Scanalyzer 2 | . . . 2 . . . . Insert Component 1 | . . . 1 . . . . Analyze 1 | . . . 1 . . . . Garrison Access Hacks 1 | . . . . . . . 1 Seal Access 1 | . . . . . . . 1 Unauthorized Hacks 8 | . 2 . 3 . . . 3 Terminals 7 | . 2 . 3 . . . 2 Botnet 6 | . 2 . 2 . . . 2 Operators 1 | . . . 1 . . . . Fabricators . | . . . . . . . . Repair Stations . | . . . . . . . . Recycling Units 1 | . . . . . . . 1 Recyclers 1 | . . . . . . . 1 Scanalyzers . | . . . . . . . . Garrison Access . | . . . . . . . . Data Cores Recovered . | . . . . . . . . Used . | . . . . . . . . Hacking Detections 35 | . 9 . 11 2 . 1 12 Full Trace Events 7 | . 3 . 1 1 . 1 1 Feedback Events . | . . . . . . . . Feedback Blocked . | . . . . . . . . Robot Schematics Acquired . | . . . . . . . . Robots Built . | . . . . . . . . Authchips . | . . . . . . . . Time . | . . . . . . . . Total Robot Build Rating . | . . . . . . . . Part Schematics Acquired 5 | . . . 2 . . . 3 Parts Built . | . . . . . . . . Authchips . | . . . . . . . . Time . | . . . . . . . . Total Part Build Rating . | . . . . . . . . Parts Repaired 3 | . 1 . 1 . . . 1 Time 111 | . 26 . 53 . . . 32 Parts Recycled . | . . . . . . . . Recycled Matter . | . . . . . . . . Retrieved Matter . | . . . . . . . . Retrieved Components 26 | . 20 . 6 . . . . Parts Scanalyzed 1 | . . . 1 . . . . Part Schematics Acquired 1 | . . . 1 . . . . Parts Damaged 1 | . . . 1 . . . . Bothacking | -11 -10 -10 -9 -9 -9 -8 -8 ------------ Run | Yrd Mat Min Mat Min Exi Min Mat Used RIF Installer . | . . . . . . . . Robots Hacked . | . . . . . . . . Non-combat . | . . . . . . . . Combat . | . . . . . . . . Robot Hacks Applied . | . . . . . . . . Relay Couplers Released . | . . . . . . . . Fabnet Peak Effective % . | . . . . . . . . Robots Rewired . | . . . . . . . . Allies Hacked . | . . . . . . . . Hacks Repelled . | . . . . . . . . Allies | -11 -10 -10 -9 -9 -9 -8 -8 -------- Run | Yrd Mat Min Mat Min Exi Min Mat Total Allies 5 | . . . . . . . 5 Largest Group 2 | . . . . . . . 2 Highest-Rated Group 90 | . . . . . . . 90 Highest-Rated Ally 90 | . . . . . . . 90 Total Orders . | . . . . . . . . Ally Attacks 44 | . . . . . . . 44 Total Damage 1639 | . . . . . . . 1639 Kills 11 | . . . . . . . 11 Allies Corrupted . | . . . . . . . . Allies Melted 1 | . . . . . . . 1 Field Lobotomies 5 | . . . . . . . 5 Intel | -11 -10 -10 -9 -9 -9 -8 -8 ------- Run | Yrd Mat Min Mat Min Exi Min Mat Robot Analysis Total 5 | . 3 . 1 . . . 1 Derelict Logs Recovered 2 | . . 1 . 1 . . . Drone Launches . | . . . . . . . . Drone Recoveries . | . . . . . . . . Exploration | -11 -10 -10 -9 -9 -9 -8 -8 ------------- Run | Yrd Mat Min Mat Min Exi Min Mat Turns Passed 9187 | 78 1473 773 2839 1773 879 529 843 Spaces Moved 4986 | 43 828 479 1050 682 350 268 1286 Core 17 | 2 . . . . . . 15 Treads 2135 | 41 110 . 787 682 350 165 . Legs 61 | . . . . . . . 61 Wheels 1460 | . 718 479 263 . . . . Hover . | . . . . . . . . Flight 1313 | . . . . . . 103 1210 Fastest Speed 27 | 50 130 130 140 243 243 29 27 Average Speed 154 | 154 145 136 222 243 243 160 38 Slowest Speed 490 | 160 175 215 490 243 243 243 250 Overloaded Moves . | . . . . . . . . Propulsion Burnouts . | . . . . . . . . Robots Hopped 20 | . . . . . . 1 19 Cave-ins Triggered . | . . . . . . . . Exploration Rate (%) 73 | 4 100 91 95 96 62 46 90 Regions Visited 7 Branch Regions 4 Pre-discovered Areas 2 | . . . . 1 1 . . Known Exits Taken . | . . . . . . . . Unknown Exits Taken 7 | 1 1 1 1 1 1 1 . Scrap Searched 4 | . . 2 . 2 . . . Spaces Dug 22 | . . . . . . 9 13 Terrain Destroyed 226 | . 34 . . . 31 80 81 Melee 13 | . . . . . . . 13 Projectile . | . . . . . . . . AOE 213 | . 34 . . . 31 80 68 Terrain Rammed . | . . . . . . . . Walls Destroyed . | . . . . . . . . Machines Disabled . | . . . . . . . . Actions | -11 -10 -10 -9 -9 -9 -8 -8 --------- Run | Yrd Mat Min Mat Min Exi Min Mat Total 5892 | 51 991 557 1322 747 366 337 1521 Wait 302 | . 58 34 48 27 3 24 108 Move 4943 | 42 827 478 1049 681 349 265 1252 Hop 16 | . . . . . . 1 15 Pick Up 87 | 1 22 11 30 4 1 . 18 Fast Attach 41 | 6 6 2 16 3 . 1 7 Attach 39 | . 4 2 8 2 . 7 16 Detach 8 | . . . 1 . . . 7 Swap 26 | 2 3 1 8 . 1 3 8 Drop 75 | . 8 7 37 4 . 12 7 Fire 283 | . 60 22 121 26 12 22 20 Melee 65 | . . . . . . 2 63 Ram 1 | . 1 . . . . . . Kick . | . . . . . . . . Crush 6 | . 2 . 4 . . . . Escape Stasis . | . . . . . . . . Rewire . | . . . . . . . . Trap . | . . . . . . . . Miscellaneous . | . . . . . . . . Route ------- -11/Scrapyard -10/Materials (discovered 5 exits: *Mat x3 / [*Min x2]) -10/Mines (discovered 2 exits: *Mat x2) -9/Materials (discovered 6 exits: *Mat x3 / *Min / [*Sto x2]) -9/Mines (discovered 3 exits: *Mat x2 / *Exi) -9/Exiles (discovered 2 exits: *Min x2) -8/Mines -8/Materials (discovered 3 exits: [*Fac x3]) History --------- Turn | Location | Event 37 | -11/Scrapyard | Discovered new exit (range 15) 79 | -11/Scrapyard | Entered Materials 206 | -10/Materials | Discovered new exit (range 16) 325 | -10/Materials | Build established: Mutant 334 | -10/Materials | Lost 3 parts (1n1u1w) 415 | -10/Materials | Discovered new exit (range 3) 427 | -10/Materials | Central database locked down 596 | -10/Materials | Discovered new exit (range 9) 838 | -10/Materials | Discovered new exit (range 11) 1306 | -10/Materials | Repaired Propulsion Shielding 1309 | -10/Materials | Discovered new exit (range 5) 1552 | -10/Materials | Entered Mines 1559 | -10/Mines | Received a Rocket Launcher from a helpful Derelict 1570 | -10/Mines | Learned Materials security intel 1805 | -10/Mines | Core integrity fell below 50% 1907 | -10/Mines | Discovered new exit (range 4) 2253 | -10/Mines | Discovered new exit (range 9) 2325 | -10/Mines | Entered Materials 2325 | -9/Materials | Evolved 2 slots: Propulsion x1, Utility x1 2510 | -9/Materials | Central database locked down 2514 | -9/Materials | Discovered new exit (range 16) 2549 | -9/Materials | Repaired Broken Lgt. Nuclear Core? 2624 | -9/Materials | Build established: Scavenger-Mutant 2724 | -9/Materials | Discovered new exit (range 9) 3025 | -9/Materials | Discovered new exit (range 15) 3085 | -9/Materials | Build established: Mutant 3592 | -9/Materials | Discovered new exit (range 5) 4313 | -9/Materials | Discovered new exit (range 15) 4399 | -9/Materials | Discovered new exit (range 15) 5164 | -9/Materials | Entered Mines 5251 | -9/Mines | Assembled infested the area 5365 | -9/Mines | Learned location of Storage (-9) 5799 | -9/Mines | A weapon hastily lodged in a ceiling crevice suddenly fell to the ground 5907 | -9/Mines | Deemed a non-threat by the Exiles lab entrance 5910 | -9/Mines | Discovered new exit (range 5) 6149 | -9/Mines | Learned Materials terminal intel 6419 | -9/Mines | Discovered new exit (range 8) 6684 | -9/Mines | Discovered new exit (range 8) 6937 | -9/Mines | Entered Exiles 6969 | -9/Exiles | Discovered new exit (range 15) 6996 | -9/Exiles | Met 8R-AWN 7037 | -9/Exiles | Met EX-HEX 7108 | -9/Exiles | Met EX-BIN 7134 | -9/Exiles | Aligned with FarCom system 7137 | -9/Exiles | Given EX-Vault access code 7193 | -9/Exiles | Opened EX-Vault 7215 | -9/Exiles | Found Field Lobotomy Kit 7269 | -9/Exiles | Warned to stay clear of 0b10 Research branches 7488 | -9/Exiles | Met EX-DEC 7507 | -9/Exiles | Learned location of Zion (-7) 7631 | -9/Exiles | Discovered new exit (range 11) 7743 | -9/Exiles | Attacked by the Exiles 7806 | -9/Exiles | Destroyed 7 combat bots 7816 | -9/Exiles | Left Exiles lab with Field Lobotomy Kit 7816 | -9/Exiles | Entered Mines 7816 | -8/Mines | Discovered new exit (range 7) 8272 | -8/Mines | Core integrity fell below 50% 8287 | -8/Mines | Core integrity fell below 20% 8324 | -8/Mines | Lost 6 parts (3n1u2w) 8345 | -8/Mines | Entered Materials 8345 | -8/Materials | Evolved 2 slots: Propulsion x1, Utility x1 8346 | -8/Materials | Loaded intel: 12 terminal locations 8387 | -8/Materials | Repaired Mni. Grenade Launcher 8517 | -8/Materials | Central database locked down 8541 | -8/Materials | Discovered new exit (range 15) 8584 | -8/Materials | Build established: Sprinter 8607 | -8/Materials | Discovered new exit (range 9) 8665 | -8/Materials | Assimilated H-61 Shepherd with FLK Orb 8706 | -8/Materials | Lost 5 parts (1p4n) 8745 | -8/Materials | Search patrols dispatched 8971 | -8/Materials | Discovered new exit (range 18) 9020 | -8/Materials | Assimilated H-61 Shepherd with FLK Orb 9070 | -8/Materials | Core integrity fell below 50% 9084 | -8/Materials | Lost 3 parts (1p1n1w) 9145 | -8/Materials | First assault squad dispatched 9174 | -8/Materials | Assimilated L-31 Rogue with FLK Orb 9179 | -8/Materials | Assimilated G-50 Soldier with FLK Orb 9184 | -8/Materials | Assimilated G-47 Trooper with FLK Orb 9188 | -8/Materials | Self-destructed Last Messages --------------- G-47 Trooper unfolds itself. M-28 Smith unfolds itself. K-01 Serf collects debris. L-31 Rogue assimilated. K-01 Serf collects debris. L-31 Rogue Imp. Aluminum Leg severed. G-50 Soldier assimilated. Rogue 3a suffers critical hit (Burn). K-01 Serf collects debris. Rogue 3a overheating. Soldier 3a destroyed. Rogue 3a overheating. Field Lobotomy Kit expended. G-47 Trooper assimilated. Rogue 3a overheating. K-01 Serf collects debris. Trooper 3a suffers critical hit (Burn). Rogue 3a overheating. Trooper 3a destroyed. Rogue 3a critical meltdown. Map ----- +----------------------------------------------------+ | ???????????????????????# " | | ???????????????????????# | | ???????????????????????# """ | | ???????????????????????# " "" | | ???????????????????????# " | | ???????????????######### | | ???????????????# "" ## = | | ???????????????# ""S ######### | | ???????????????# "" +^ " ^ | | ???????????????# #^ " | | ???????????????# ] #^ | | ??????????????## # | | ?????????????##"####### [ | | ????############# ### | | ????# | | ????# ##### ###+##### | | ????# T #?####+#### ## | | ????# #?# #"" ## | | ????# #?#^ = #"T ## | | ????# #?# ^^ #"" ## | | ????# " ### ^ # ]## | | ????# "" ""# # ## | | ????# "" T"##############" | | ????# """ ""# [ ! # | | ????# *%= #### % # | | ????# @"""o """# [= #% | | ????#/%"""l G"# # | | ????# !""" """# # % | | ????#=lg" #### + | | ????#%g= #??# # | | ????#=g %#??# ! # | | ????#% #??# ]] ### | | ????# #??# ]/ #?# | | ????# k#??# #?# | | ????# % #??# #?# | | ????# #??################ | | ??######+## #???????????# | | ??# = # #???????????# ##+## | | ??# # #???????????# ## | | ??# """"" # #???????????# ## | | ??# """"" #+#########???# ## | | ??# """"" # ] #???# ## | | ??######### * #???# ##### | | ??##" #???# ## | | ???## ! #???# ## | | ???# = * !! !#???# ## | | ???# !! #???# ## | | ???# = !! #???# ## | | #### #???# ## | | # ########???? ?# | +----------------------------------------------------+ Best States ------------- Heat Dissipation 31 Energy Generation 14 Energy Capacity 280 Matter Stores 300 Matter Capacity 300 Sight Range 20 Robot Scan Range 15 Terrain Scan Density 10 Additional Mass Support 6 Armor Coverage 225 Propulsion Shielding 33 Evasion (%) 64 Targeting Accuracy 6 Recoil Reduction 3 Offensive Hacking 10 Item Schematics ----------------- Lgt. Nuclear Core | -9/Materials | Scanalyzed ECM Suite | -9/Materials | Hacked Mni. Grenade Launcher | -8/Materials | Hacked Scythe | -8/Materials | Hacked Imp. Utility Shielding | -8/Materials | Hacked Robot Schematics ------------------ None Fabricated ------------ Nothing Alien Tech Used ----------------- None Achievements -------------- None Challenges ------------ None Game ------ Seed DisposableVisualClaw Manual? 0 Play Time 01:09:46 Cumulative 209.6 hours Start 2024.06.26 @ 22:11:06 End 2024.06.26 @ 23:28:17 Sessions 1 Manual Loads 0 Difficulty Rogue Special Mode None Game No. 217 Rogue 217 Adventurer 0 Explorer 0 Win Type - Total 15 Types 14/0/0/1/0/0/0/0/0 Lore% 72 Gallery% 83 Achievement% 79 Wizard Run 0 Options --------- Layout 1 ASCII 0 Keyboard 0 Movement Numpad Keybinds 0 Fullscreen 1 Font 24/Smallcaps Map View 50x35 Zoom Use 0% Tactical HUD 1 Map Filters NONE Filters NONE Steam 1 RUN: 1de3cad7-2401-4030-855f-1c73216735d3